bitfinex/quotes_ETHUSD_20250821
["timestamp","ask_amount","ask_price","bid_price","bid_amount"]
[1755785381322,3.0,4291.5,4290.8,0.021]
[1755785381522,3.0,4291.3,4290.8,0.021]
[1755785381706,5.33020195,4291.5,4290.8,0.021]
[1755785381707,3.0,4291.1,4290.8,0.021]
[1755785382022,3.0,4290.9,4290.8,0.021]
[1755785382547,4.193,4291.1,4290.8,0.7979]
[1755785382708,3.0,4291.0,4290.9,0.466]
[1755785383062,3.0,4291.0,4290.8,0.021]
[1755785383343,3.0,4291.0,4290.9,0.3109]
[1755785383760,3.0,4291.0,4290.9,0.7769]
[1755785384108,1.793,4291.2,4290.9,0.7769]
[1755785384313,4.192,4291.3,4290.9,0.3109]
[1755785384528,4.192,4291.4,4291.0,0.466]
[1755785384728,3.0,4291.4,4291.3,0.3109]
[1755785385016,3.0,4291.4,4291.3,0.7769]
[1755785385448,4.192,4291.5,4291.3,0.7769]
[1755785386163,3.0,4291.4,4290.8,0.021]
[1755785386482,3.0,4291.4,4290.8,0.487]
[1755785387219,3.0,4291.4,4290.8,0.021]
[1755785387413,3.0,4291.4,4290.8,0.487]
[1755785389011,3.002,4291.5,4291.3,0.3109]
[1755785389211,3.002,4291.5,4291.4,0.466]
[1755785389438,0.002,4291.5,4291.4,0.7769]
[1755785389636,0.002,4291.9,4291.4,0.7769]
[1755785389946,0.002,4291.9,4291.5,0.466]
[1755785390159,0.002,4292.4,4291.8,0.3109]
[1755785390650,0.002,4292.4,4291.9,0.67639]
[1755785390864,0.002,4292.4,4292.0,0.3109]
[1755785391020,0.002,4292.4,4292.0,0.7769]
[1755785392439,0.002,4292.4,4292.0,0.80019916]
[1755785394018,0.002,4292.4,4292.0,0.7769]
[1755785395067,0.0012,4292.1,4292.0,0.7769]
[1755785395354,0.0012,4292.1,4292.0,1.45269]
[1755785396065,0.0012,4292.1,4292.0,0.7769]
[1755785399784,0.0012,4292.1,4292.0,0.80019916]
[1755785399988,0.0012,4292.1,4292.0,1.46019916]
[1755785400190,0.0012,4292.1,4292.0,3.79011528]
[1755785400359,0.0012,4292.1,4292.0,19.53480157]
[1755785400679,0.0012,4292.1,4292.0,9.12895575]
[1755785400888,0.0012,4292.1,4292.0,21.8969412]
[1755785401176,0.0012,4292.1,4292.0,10.98403963]
[1755785401680,0.0012,4292.1,4292.0,13.31395575]
[1755785402147,0.0012,4292.1,4292.0,13.31295575]
[1755785402349,0.0012,4292.1,4292.0,22.9744875]
[1755785402545,0.0012,4292.1,4292.0,25.30440362]
[1755785402750,0.02,4292.8,4292.4,0.66]
[1755785402976,0.02,4292.8,4292.7,15.96234787]
[1755785403148,0.02,4292.8,4292.7,18.1585123]
[1755785403346,0.02,4292.8,4292.7,20.95404848]
[1755785403862,0.02,4292.8,4292.7,22.8085123]
[1755785404381,0.02,4292.8,4292.7,25.13804848]
[1755785404560,0.02,4292.8,4292.7,22.8085123]
[1755785404763,0.002,4292.9,4292.8,3.66]
[1755785405063,0.02,4294.8,4293.4,12.65144787]
[1755785405273,0.02,4294.8,4293.4,3.2289]
[1755785405490,0.02,4294.8,4293.4,7.4119]
[1755785405687,0.02,4294.8,4293.4,6.7519]
[1755785406690,0.02,4294.8,4293.4,7.4119]
[1755785406845,0.02,4294.8,4293.4,8.15309]
[1755785407884,0.02,4294.8,4293.4,8.15209]
[1755785408185,0.372,4294.8,4293.4,6.71519]
[1755785408582,0.02,4294.8,4293.4,8.13039]
[1755785409485,0.02,4294.8,4293.4,10.45954637]
[1755785409700,0.02,4294.8,4293.4,13.45954637]
[1755785409862,0.02,4294.8,4293.8,3.66]
[1755785410070,0.02,4294.8,4293.5,2.32906702]
[1755785410071,0.02,4294.8,4294.7,0.308]
[1755785410256,0.02,4294.8,4294.7,1.792]
[1755785410459,0.02,4294.8,4294.7,5.973]
[1755785410646,0.02,4294.8,4294.7,1.792]
[1755785410980,0.02,4294.8,4294.7,5.972]
[1755785411181,0.02,4294.8,4294.7,6.8772]
[1755785411501,0.02,4294.8,4294.7,7.3244]
[1755785412207,0.02,4294.8,4294.7,2.6972]
[1755785412401,0.02,4294.8,4294.7,6.7262]
[1755785412886,0.02,4294.8,4294.7,5.971]
[1755785413195,0.02,4294.8,4294.7,6.7262]
[1755785414193,0.02,4294.8,4294.7,6.279]
[1755785414385,0.02,4294.8,4294.7,6.278]
[1755785414579,0.02,4294.8,4294.7,2.7278]
[1755785414790,0.02,4294.8,4294.7,2.1]
[1755785414984,0.02,4294.8,4294.7,5.97]
[1755785415668,0.02,4294.8,4294.7,1.792]
[1755785415868,0.1189,4294.8,4294.7,5.97]
[1755785416068,0.1189,4294.8,4294.7,1.792]
[1755785416269,0.1189,4294.8,4292.8,2.49893963]
[1755785416270,0.2179,4294.8,4292.8,2.94613963]
[1755785416461,0.1189,4294.8,4293.1,1.791]
[1755785416661,0.02,4294.8,4293.3,3.0]
[1755785416899,0.02,4294.8,4293.5,3.0]
[1755785417061,0.02,4294.8,4293.6,0.68329047]
[1755785417263,0.02,4294.8,4293.8,0.66]
[1755785417489,0.02,4294.8,4294.7,0.308]
[1755785417662,0.02,4294.8,4294.7,4.485]
[1755785417866,0.02,4294.8,4294.7,4.50828451]
[1755785418063,0.02,4294.8,4294.7,6.74648451]
[1755785418294,0.02,4294.8,4294.7,6.7232]
[1755785418596,0.0212,4294.8,4294.7,1.791]
[1755785419104,0.0212,4294.8,4294.7,5.967]
[1755785419778,0.0192,4294.8,4294.7,5.967]
[1755785420503,0.0192,4294.8,4294.7,6.7222]
[1755785420870,0.0192,4294.8,4294.7,1.791]
[1755785421079,0.0192,4294.8,4294.7,5.967]
[1755785421274,0.0192,4294.8,4294.7,6.275]
[1755785421474,0.0192,4294.8,4294.7,7.3497]
[1755785421679,0.1182,4294.8,4294.0,1.791]
[1755785421987,0.4677,4294.8,4294.0,5.966]
[1755785422381,0.4677,4294.8,4294.0,1.791]
[1755785422382,0.3495,4294.7,4294.0,1.791]
[1755785422581,0.1015,4294.1,4293.2,1.791]
[1755785422784,0.1015,4294.1,4292.3,1.791]
[1755785422785,30.347,4294.0,4292.3,1.791]
[1755785423003,0.3002,4292.9,4292.3,1.791]
[1755785423310,0.1503,4293.9,4292.4,0.02329699]
[1755785424316,1.8102,4294.8,4292.9,0.02329427]
[1755785424619,1.8102,4294.8,4293.0,0.48974316]
[1755785424779,1.8102,4294.8,4293.1,1.791]
[1755785424975,1.8102,4294.8,4293.3,0.66]
[1755785425327,1.8102,4294.8,4293.5,0.66]
[1755785425516,0.0192,4294.8,4293.5,0.66]
[1755785425722,0.0192,4294.8,4293.7,0.66]
[1755785426202,0.0192,4294.8,4293.6,0.9306]
[1755785426392,0.3712,4294.8,4293.1,7.39]
[1755785426591,0.3712,4294.8,4293.2,4.174]
[1755785427787,0.3712,4294.8,4293.3,0.0232921]
[1755785427993,0.3712,4294.8,4293.2,4.174]
[1755785428917,0.3712,4294.8,4293.1,1.791]
[1755785429127,2.00851742,4294.7,4293.1,1.791]
[1755785429328,0.2175273,4294.6,4293.1,1.791]
[1755785429625,30.352,4294.5,4292.3,1.791]
[1755785429824,0.099,4293.2,4292.3,1.791]
[1755785430630,0.099,4293.2,4291.8,0.02]
[1755785430631,2.1405,4293.1,4291.8,0.02]
[1755785430938,0.3002,4292.9,4291.8,0.02]
[1755785431589,1.791,4293.1,4291.8,0.04330024]
[1755785431793,1.791,4293.1,4291.8,0.02]
[1755785432006,3.099,4292.9,4291.8,0.02]
[1755785432197,33.81781608,4292.9,4291.8,0.02]
[1755785432403,1.16694833,4292.9,4291.8,0.02]
[1755785432725,0.66602774,4292.9,4291.8,0.02]
[1755785433100,33.66602774,4292.9,4291.8,0.02]
[1755785433300,33.66586479,4292.9,4291.8,0.02]
[1755785433528,3.31636479,4292.9,4291.8,0.02]
[1755785433699,3.0,4292.9,4291.8,0.04330024]
[1755785434331,2.32861249,4294.5,4292.8,0.4672]
[1755785434332,1.792,4293.9,4292.8,0.4672]
[1755785434497,1.792,4293.9,4292.8,0.02]
[1755785434898,0.352,4293.8,4292.8,0.02]
[1755785435199,0.099,4292.9,4292.8,0.02]
[1755785435807,0.21703021,4293.7,4292.8,0.02]
[1755785436025,3.0,4293.5,4292.8,0.02]
[1755785436327,3.0,4293.7,4292.8,0.02]
[1755785436644,30.0,4293.6,4292.8,0.021]
[1755785437345,0.352,4293.8,4292.8,0.021]
[1755785437511,4.792,4293.9,4292.8,0.021]
[1755785437710,1.792,4293.9,4292.8,0.021]
[1755785437907,1.792,4293.9,4292.9,0.4581]
[1755785438249,1.792,4293.9,4292.8,0.021]
[1755785439043,1.792,4293.9,4292.9,0.4581]
[1755785439238,1.792,4293.9,4292.8,0.021]
[1755785440616,0.3063,4292.9,4292.8,0.021]
[1755785441242,0.4515,4292.9,4292.8,0.021]
[1755785441442,0.3063,4292.9,4292.8,0.021]
[1755785442933,0.4507,4292.9,4292.8,0.021]
[1755785443121,0.3055,4292.9,4292.8,0.021]
[1755785443322,33.44012765,4292.9,4292.8,0.021]
[1755785443647,34.95791727,4292.9,4292.8,0.021]
[1755785443947,34.32768698,4292.9,4292.8,0.021]
[1755785444148,33.52248698,4292.9,4292.8,0.021]
[1755785444351,37.4755,4292.9,4292.8,0.021]
[1755785444760,7.4755,4292.9,4292.8,0.021]
[1755785444958,1.792,4293.1,4292.8,0.021]
[1755785445121,0.3512,4294.1,4292.8,0.021]
[1755785445322,1.792,4293.8,4292.8,0.021]
[1755785445532,4.169,4294.2,4292.9,0.02329427]
[1755785445746,3.0,4294.1,4292.9,0.02329427]
[1755785445953,1.792,4294.3,4292.9,0.02329427]
[1755785446124,5.961,4294.3,4293.0,0.48139373]
[1755785446457,0.0212,4294.8,4293.0,0.48139373]
[1755785446665,0.0212,4294.8,4293.1,1.792]
[1755785446953,0.0212,4294.8,4293.2,1.10233937]
[1755785447153,0.0212,4294.8,4293.3,0.0232921]
[1755785447456,0.0212,4294.8,4293.5,0.66]
[1755785447824,0.0212,4294.8,4293.6,0.4581]
[1755785448055,0.0212,4294.8,4293.7,0.02328993]
[1755785448255,0.0212,4294.8,4294.7,0.3137]
[1755785448458,0.0212,4294.8,4294.7,0.7718]
[1755785450531,0.0212,4294.8,4294.2,1.792]
[1755785450767,0.0212,4294.8,4294.3,0.1792]
[1755785450956,0.0212,4294.8,4294.4,0.4581]
[1755785451435,0.0212,4294.8,4294.5,0.4581]
[1755785451631,0.0212,4294.8,4294.3,0.1792]
[1755785451836,0.0212,4294.8,4294.7,0.3137]
[1755785452056,0.0212,4294.8,4294.7,0.7718]
[1755785452259,0.0212,4294.8,4294.3,0.1792]
[1755785452536,0.3063,4294.4,4293.5,1.792]
[1755785452737,0.3063,4294.4,4293.6,0.1792]
[1755785452967,0.0212,4294.8,4293.5,1.792]
[1755785453335,0.0212,4294.8,4293.6,0.48139047]
[1755785453542,0.0212,4294.8,4293.6,0.4581]
[1755785453736,0.0212,4294.8,4293.5,1.792]
[1755785455170,0.0212,4294.8,4294.7,0.3137]
[1755785455396,0.0212,4294.8,4293.6,0.4581]
[1755785455574,0.0212,4294.8,4293.7,0.22501]
[1755785455881,0.0212,4294.8,4293.5,1.792]
[1755785457469,0.0212,4294.8,4293.6,0.48139047]
[1755785457844,0.0212,4294.8,4293.6,0.4581]
[1755785458040,0.0212,4294.8,4293.6,0.68311]
[1755785458242,0.0212,4294.8,4293.6,0.4581]
[1755785458563,0.0212,4294.8,4293.7,0.02328993]
[1755785458741,0.0212,4294.8,4293.8,0.48138939]
[1755785459153,0.0212,4294.8,4293.8,0.4581]
[1755785459359,0.0212,4294.8,4293.9,0.02328885]
[1755785459658,0.0212,4294.8,4293.8,0.4581]
[1755785459857,0.0212,4294.8,4293.5,1.792]
[1755785460393,0.66,4294.3,4292.8,0.021]
[1755785460601,0.099,4293.6,4292.8,0.021]
[1755785460906,3.0,4293.4,4292.8,0.021]
[1755785461108,3.0,4293.2,4292.8,0.021]
[1755785461414,1.792,4293.5,4292.8,0.021]
[1755785461556,1.792,4293.5,4292.9,0.4581]
[1755785461769,1.792,4293.5,4292.8,0.021]
[1755785463103,1.792,4293.5,4292.9,0.4581]
[1755785463479,1.792,4293.5,4292.8,0.021]
[1755785465079,1.792,4294.2,4292.9,0.48139427]
[1755785465326,1.792,4294.2,4292.9,0.4581]
[1755785465501,1.792,4294.2,4292.8,0.021]
[1755785465702,1.792,4294.2,4292.9,0.48139427]
[1755785466028,1.792,4294.2,4292.9,0.4581]
[1755785466190,1.7912,4294.2,4292.9,0.4581]
[1755785466692,1.7912,4294.2,4292.9,0.48139427]
[1755785466898,1.7912,4294.2,4292.9,0.4581]
[1755785467096,1.7912,4294.2,4292.9,0.48139427]
[1755785467705,0.0212,4294.8,4294.1,0.3034]
[1755785467878,0.0212,4294.8,4294.2,0.02328722]
[1755785468076,0.0212,4294.8,4294.0,1.792]
[1755785469622,0.0212,4294.8,4294.7,0.3034]
[1755785469989,0.0212,4294.8,4294.7,0.7767]
[1755785471405,0.0212,4294.8,4294.7,0.79998451]
[1755785471988,0.0212,4294.8,4294.7,0.7767]
[1755785473025,0.0212,4294.8,4294.1,0.4733]
[1755785473182,0.0212,4294.8,4294.2,0.02328722]
[1755785473381,0.0212,4294.8,4294.7,0.3034]
[1755785473611,0.0212,4294.8,4294.3,0.4733]
[1755785473794,0.0212,4294.8,4294.7,0.3034]
[1755785473994,0.0212,4294.8,4294.4,0.4733]
[1755785474296,0.0212,4294.8,4294.5,0.49658559]
[1755785474498,0.0212,4294.8,4294.1,0.52653]
[1755785474681,0.0212,4294.8,4294.0,1.792]
[1755785475082,0.0212,4294.8,4294.7,0.3034]
[1755785475443,0.0212,4294.8,4293.0,0.4733]
[1755785475619,0.0212,4294.8,4293.1,1.791]
[1755785475620,3.0,4294.6,4293.1,1.791]
[1755785475784,0.19718407,4294.8,4293.1,1.791]
[1755785475988,0.3512,4294.5,4293.1,1.791]
[1755785476339,0.21768761,4294.4,4293.1,1.791]
[1755785476630,0.21768567,4294.4,4293.1,1.791]
[1755785476794,0.3046,4293.2,4292.2,1.791]
[1755785476995,1.791,4294.0,4292.2,1.791]
[1755785477184,3.0,4293.8,4292.4,0.4743]
[1755785477384,1.792,4294.0,4292.4,0.4743]
[1755785477719,1.792,4294.0,4292.4,0.001]
[1755785477720,0.3512,4293.7,4292.4,0.001]
[1755785477924,3.0,4293.5,4292.4,0.001]
[1755785478109,0.3512,4293.7,4292.4,0.001]
[1755785478294,3.0,4293.5,4292.4,0.001]
[1755785478499,0.3512,4293.7,4292.4,0.02429699]
[1755785478803,1.792,4294.0,4292.7,0.4733]
[1755785479118,0.21759305,4293.9,4292.7,0.4733]
[1755785479320,0.21759305,4293.9,4292.4,0.001]
[1755785479528,0.099,4292.9,4292.4,0.001]
[1755785479886,32.8997,4292.9,4292.4,0.001]
[1755785480246,39.07850593,4292.9,4292.4,0.001]
[1755785480886,17.97851381,4292.5,4292.4,0.001]
[1755785481087,5.98986183,4292.1,4292.0,0.001]
[1755785481328,5.98991612,4292.0,4291.9,0.001]
[1755785481537,37.2889944,4292.0,4291.9,0.001]
[1755785482040,37.2889944,4292.0,4291.5,0.001]
[1755785482041,2.99005354,4291.8,4291.5,0.001]
[1755785482183,15.28360237,4291.6,4291.5,0.001]
[1755785482388,49.13224919,4291.6,4291.5,0.001]
[1755785482587,53.43444919,4291.6,4291.5,0.001]
[1755785482815,49.27744919,4291.6,4291.5,0.001]
[1755785483134,47.11904832,4291.6,4291.5,0.001]
[1755785483337,34.98497923,4291.6,4291.5,0.001]
[1755785483642,37.63333241,4291.6,4291.5,0.001]
[1755785483789,33.47633241,4291.6,4291.5,0.001]
[1755785483988,37.63233241,4291.6,4291.5,0.001]
[1755785484600,38.43753241,4291.6,4291.5,0.001]
[1755785484905,40.62246569,4291.6,4291.5,0.001]
[1755785485085,38.29233241,4291.6,4291.5,0.001]
[1755785485520,33.47633241,4291.6,4291.5,0.001]
[1755785485834,37.32873241,4291.6,4291.5,0.001]
[1755785486415,3.0,4291.6,4291.5,0.001]
[1755785486757,7.157,4291.6,4291.5,0.001]
[1755785487026,1.792,4292.1,4291.5,0.3044]
[1755785487226,4.157,4292.0,4291.5,0.7777]
[1755785487532,3.0,4292.0,4291.6,0.4733]
[1755785488108,3.0,4292.0,4291.5,0.001]
[1755785488109,3.0,4291.8,4291.5,0.001]
[1755785488313,3.0,4291.6,4291.5,0.001]
[1755785488510,3.17805035,4292.0,4291.5,0.001]
[1755785488731,5.949,4292.1,4291.5,0.001]
[1755785488732,1.792,4292.1,4291.5,0.7777]
[1755785489032,4.792,4292.1,4291.5,0.3044]
[1755785489398,4.792,4292.1,4291.6,0.4733]
[1755785489598,4.792,4292.1,4291.7,0.4733]
[1755785489929,0.093433,4293.5,4292.0,0.3034]
[1755785489930,4.1562,4292.6,4292.0,0.3034]
[1755785490132,4.1562,4292.6,4292.1,0.4733]
[1755785490350,1.96915872,4292.9,4292.5,0.3034]
[1755785490498,0.17615872,4292.9,4291.5,0.4743]
[1755785490798,5.3295919,4292.6,4291.5,0.001]
[1755785490999,3.0,4292.4,4291.5,0.001]
[1755785491235,30.0,4292.3,4291.5,0.001]
[1755785491598,3.0,4292.2,4291.5,0.001]
[1755785491906,0.097,4291.6,4291.5,0.001]
[1755785492106,37.253,4291.6,4291.5,0.001]
[1755785492521,40.59173328,4291.6,4291.5,0.001]
[1755785492949,40.72138421,4291.6,4291.5,0.001]
[1755785493230,40.59173328,4291.6,4291.5,0.001]
[1755785493607,40.9373383,4291.6,4291.5,0.001]
[1755785494142,41.43510617,4291.6,4291.5,0.001]
[1755785494433,40.72133136,4291.6,4291.5,0.001]
[1755785494936,40.24213328,4291.6,4291.5,0.001]
[1755785495102,40.59073328,4291.6,4291.5,0.001]
[1755785495445,52.70915378,4291.6,4291.5,0.001]
[1755785495613,33.757,4291.6,4291.5,0.001]
[1755785495813,33.0,4291.6,4291.5,0.001]
[1755785496028,0.093465,4292.0,4291.5,0.001]
[1755785496344,4.156,4292.5,4291.5,0.7777]
[1755785496644,3.0,4292.3,4291.5,0.3044]
[1755785496849,2.98986592,4292.1,4291.5,0.001]
[1755785497144,3.0,4291.9,4291.5,0.001]
[1755785497440,34.155,4291.8,4291.5,0.001]
[1755785497742,4.155,4291.8,4291.5,0.001]
[1755785497905,1.793,4292.4,4291.6,0.4281]
[1755785497906,4.793,4292.4,4291.6,0.4281]
[1755785498105,3.0,4292.2,4291.6,0.4281]
[1755785498342,3.0,4292.0,4291.6,0.4281]
[1755785498503,5.33004428,4291.8,4291.5,0.001]
[1755785498707,5.99013328,4291.6,4291.5,0.001]
[1755785498910,35.5545,4291.6,4291.5,0.001]
[1755785499318,37.88463328,4291.6,4291.5,0.001]
[1755785499738,49.87350237,4291.6,4291.5,0.001]
[1755785499950,47.54336909,4291.6,4291.5,0.001]
[1755785500120,51.69836909,4291.6,4291.5,0.001]
[1755785500823,54.02850237,4291.6,4291.5,0.001]
[1755785501024,51.69836909,4291.6,4291.5,0.001]
[1755785501251,39.7095,4291.6,4291.5,0.001]
[1755785501453,39.608,4291.6,4291.5,0.001]
[1755785501927,38.948,4291.6,4291.5,0.001]
[1755785502244,38.947,4291.6,4291.5,0.001]
[1755785502958,38.947,4291.6,4291.5,0.7339]
[1755785502959,5.947,4291.6,4291.5,0.7339]
[1755785503255,8.947,4291.6,4291.5,0.7339]
[1755785503467,1.793,4292.4,4291.5,0.7339]
[1755785503752,4.154,4292.3,4291.6,0.4281]
[1755785503947,4.154,4292.3,4292.2,0.3048]
[1755785504136,0.002,4292.6,4292.2,0.7329]
[1755785504351,3.002,4292.6,4292.3,0.4281]
[1755785504649,3.0,4292.2,4291.5,0.001]
[1755785504858,3.0,4292.0,4291.5,0.001]
[1755785505018,3.0,4291.8,4291.5,0.001]
[1755785505351,3.0,4291.6,4291.5,0.001]
[1755785505561,4.153,4291.6,4291.5,0.001]
[1755785506262,3.0,4292.0,4291.5,0.001]
[1755785506430,0.13049842,4291.9,4291.5,0.7339]
[1755785506629,0.13049842,4292.0,4291.6,0.4281]
[1755785506831,3.0,4292.2,4291.9,0.3048]
[1755785507065,3.0,4292.4,4292.0,0.4281]
[1755785507278,0.13047749,4292.3,4292.1,0.4281]
[1755785507480,0.002,4292.6,4292.2,0.02329807]
[1755785507632,0.002,4292.6,4292.2,0.3048]
[1755785507826,0.002,4292.6,4292.3,0.45139753]
[1755785508069,0.02,4292.8,4292.5,0.3048]
[1755785508327,0.02,4292.8,4292.6,0.0232959]
[1755785508535,0.02,4292.8,4292.7,0.7329]
[1755785508965,0.02,4292.8,4292.7,1.3929]
[1755785509266,0.02,4292.8,4292.7,2.06419]
[1755785509566,0.02,4292.8,4292.7,1.94739]
[1755785510430,0.02,4292.8,4292.7,1.28739]
[1755785510634,0.02,4292.8,4292.7,0.7329]
[1755785511476,0.02,4292.8,4292.7,1.3929]
[1755785512047,0.02,4292.8,4292.7,0.7329]
[1755785513850,0.0192,4292.8,4292.7,0.75619536]
[1755785514479,0.0192,4292.8,4292.7,0.7329]
[1755785514689,0.0192,4292.8,4292.7,1.24448536]
[1755785516397,0.0192,4292.8,4292.7,1.22119]
[1755785516602,0.0192,4292.8,4292.7,4.8819]
[1755785516895,0.0192,4292.8,4292.7,0.7329]
[1755785517255,0.0192,4292.8,4292.6,4.149]
[1755785517450,0.0192,4292.8,4292.7,0.75619536]
[1755785517686,0.0192,4292.8,4292.7,0.7329]
[1755785518390,0.0192,4292.8,4292.7,1.22109]
[1755785518576,0.0192,4292.8,4292.0,1.793]
[1755785518770,0.0192,4292.8,4292.2,0.4281]
[1755785518973,0.0192,4292.8,4292.7,0.3048]
[1755785519790,0.0192,4292.8,4292.7,0.7329]
[1755785520380,0.0192,4292.8,4292.7,0.3048]
[1755785520692,0.0192,4292.8,4292.1,4.148]
[1755785520693,0.0192,4292.8,4292.2,0.4281]
[1755785520894,0.0192,4292.8,4292.7,0.3048]
[1755785521262,0.0192,4292.8,4292.7,0.7329]
[1755785521461,0.0192,4292.8,4292.3,0.63791]
[1755785521663,0.0212,4292.8,4292.3,0.63791]
[1755785522416,0.0212,4292.8,4292.3,0.001]
[1755785522563,0.0035,4292.4,4292.3,0.001]
[1755785523110,0.0212,4292.8,4292.3,0.001]
[1755785523805,0.3157,4292.4,4292.3,0.001]
[1755785524163,0.3563,4292.4,4292.3,0.001]
[1755785524583,0.3157,4292.4,4292.3,0.001]
[1755785525126,1.792,4292.7,4292.3,0.001]
[1755785525683,0.0212,4292.8,4292.3,0.001]
[1755785525890,0.0212,4292.8,4292.7,0.3048]
[1755785526084,0.0212,4292.8,4292.7,0.7329]
[1755785526415,0.0212,4292.8,4292.3,0.001]
[1755785526610,0.0212,4292.8,4292.3,0.22311]
[1755785527032,0.0212,4292.8,4292.7,0.3048]
[1755785527411,0.0212,4292.8,4292.7,0.7329]
[1755785527704,0.0212,4292.8,4292.7,1.3929]
[1755785527954,0.0212,4292.8,4292.7,5.5389]
[1755785528245,0.0212,4292.8,4292.7,6.09279]
[1755785529031,0.0212,4292.8,4292.7,1.94679]
[1755785529240,0.0212,4292.8,4292.7,5.5389]
[1755785529441,0.0212,4292.8,4292.7,1.3929]
[1755785529653,0.0212,4292.8,4292.7,4.8779]
[1755785531844,0.0212,4292.8,4292.7,5.5379]
[1755785532440,0.0212,4292.8,4292.7,8.5379]
[1755785532642,0.0212,4292.8,4292.7,4.144]
[1755785532954,0.1202,4292.8,4292.3,0.001]
[1755785533113,0.0212,4292.8,4292.3,0.001]
[1755785533626,0.0212,4292.8,4292.3,0.02429753]
[1755785533955,0.0212,4292.8,4292.7,0.2998]
[1755785534242,0.0212,4292.8,4292.7,4.8913]
[1755785534455,0.0212,4292.8,4292.7,0.48913]
[1755785534658,0.0212,4292.8,4292.7,4.143]
[1755785535157,0.0212,4292.8,4292.7,8.57359536]
[1755785535355,0.002,4293.1,4292.9,0.66]
[1755785535559,0.002,4293.1,4293.0,8.08117339]
[1755785535851,0.002,4293.1,4293.0,5.7518]
[1755785536152,0.002,4293.1,4293.0,7.46647917]
[1755785536353,0.002,4293.1,4293.0,9.79585256]
[1755785536928,0.002,4293.1,4293.0,7.46647917]
[1755785537334,0.002,4293.1,4293.0,9.79585256]
[1755785537535,0.0012,4293.1,4293.0,7.46647917]
[1755785538123,0.0012,4293.1,4293.0,6.1993]
[1755785538438,0.0012,4293.1,4293.0,10.3413]
[1755785539020,0.0012,4293.1,4293.0,12.67067339]
[1755785539459,0.0012,4293.1,4293.0,10.3413]
[1755785540324,0.0012,4293.1,4293.0,12.67067339]
[1755785540523,0.0012,4293.1,4293.0,13.94942073]
[1755785540754,0.0012,4293.1,4293.0,11.62004734]
[1755785540955,0.0012,4293.1,4293.0,7.47804734]
[1755785541163,0.0012,4293.1,4293.0,10.3403]
[1755785541336,0.0012,4293.1,4293.0,2.7518]
[1755785541538,0.0012,4293.1,4293.0,5.933]
[1755785542125,0.0012,4293.1,4293.0,7.3403]
[1755785543847,0.0012,4293.1,4293.0,6.2328]
[1755785544048,0.0012,4293.1,4293.0,1.792]
[1755785544280,0.0012,4293.1,4293.0,5.932]
[1755785546381,0.0012,4293.1,4293.0,7.3393]
[1755785547268,0.0012,4293.1,4293.0,6.8908]
[1755785547430,0.0012,4293.1,4293.0,7.3383]
[1755785547629,0.00200947,4293.8,4293.0,16.67213]
[1755785547857,0.7236864,4296.6,4294.2,0.66]
[1755785548167,0.093349,4296.7,4294.7,3.28825134]
[1755785548388,0.13038231,4297.0,4294.7,7.45053585]
[1755785548539,2.1736,4297.1,4294.7,7.45053585]
[1755785548540,2.1736,4297.1,4294.7,10.87475134]
[1755785548866,2.1736,4297.1,4294.7,9.09789097]
[1755785549074,2.1736,4297.1,4294.7,10.90843963]
[1755785549266,0.4016,4296.8,4294.7,10.90743963]
[1755785549794,0.3816,4296.2,4294.7,10.16013963]
[1755785550020,0.3816,4296.2,4294.7,10.90743963]
[1755785550524,0.4016,4296.8,4294.7,10.90743963]
[1755785550661,0.4016,4296.8,4294.7,6.76943963]
[1755785550859,0.3816,4296.3,4294.7,10.60763963]
[1755785551090,0.3816,4296.2,4294.7,10.16013963]
[1755785551287,0.3816,4296.2,4294.7,4.798]
[1755785551488,0.3816,4296.2,4294.7,5.0978]
[1755785551698,0.02,4296.8,4294.7,5.5453]
[1755785551997,0.3816,4296.6,4294.7,5.5453]
[1755785552379,0.3816,4296.4,4294.7,5.5443]
[1755785553057,0.1182,4294.8,4293.0,6.33383]
[1755785553264,0.1182,4294.8,4293.1,6.680183]
[1755785553482,0.1182,4294.8,4293.7,11.98886909]
[1755785553686,0.0192,4294.8,4293.8,4.16028939]
[1755785553878,0.0192,4294.8,4293.9,1.791]
[1755785554397,0.0192,4294.8,4294.0,4.136]
[1755785554608,0.0192,4294.8,4294.1,0.5927]
[1755785554772,0.0192,4294.8,4294.2,4.136]
[1755785555122,0.0192,4294.8,4294.3,0.02328668]
[1755785555409,0.0192,4294.8,4294.4,4.136]
[1755785556271,0.0192,4294.8,4294.5,0.02328559]
[1755785556473,0.0192,4294.8,4294.7,0.66]
[1755785556671,0.0192,4294.8,4294.7,7.3343]
[1755785557111,0.0192,4294.8,4294.7,6.587]
[1755785557698,0.0192,4294.8,4294.7,5.927]
[1755785557916,0.1182,4294.8,4294.7,5.927]